[Event "DFMMLV 2019"]
[Site "Braunfels"]
[Date "2019.06.21"]
[Round "3.30"]
[White "Goetz, Fenja"]
[Black "Grining, Maria"]
[Result "0-1"]
[ECO "B15"]
[WhiteElo "1528"]
[BlackElo "1709"]
[Annotator "NA"]
[PlyCount "136"]
[EventDate "2019.06.20"]
[EventType "team-tourn"]
[EventCountry "GER"]
[SourceTitle "playchess.com"]
[Source "ChessBase"]
[SourceQuality "1"]
[WhiteTeam "Hessen 2"]
[BlackTeam "Baden"]
[TimeControl "40/5400+30:1800+30"]

1. e4 {[%emt 0:00:00]} c6 {[%emt 0:00:00]} 2. d4 {[%emt 0:00:11]} d5 {[%emt 0:00:00]} 3. Nc3 {[%emt 0:00:21]} dxe4 {[%emt 0:00:00]} 4. Nxe4 {[%emt 0:00:09]} Nf6 {[%emt 0:00:00]} 5. Nxf6+ {[%emt 0:01:13]} exf6 {[%emt 0:00:02]} 6. Nf3 {[%emt 0:00:14]} Bd6 {[%emt 0:00:56]} 7. Bd3 {[%emt 0:01:15]} Be6 {[%emt 0:02:38]} 8. O-O {[%emt 0:00:44]} Qc7 {[%emt 0:01:52]} 9. Re1 {[%emt 0:03:05]} O-O {[%emt 0:01:55]} 10. h3 {[%emt 0:00:59]} Rd8 {[%emt 0:07:57]} 11. c3 {[%emt 0:06:12]} c5 {[%emt 0:04:19]} 12. Be3 {[%emt 0:02:57]} cxd4 {[%emt 0:01:58]} 13. Bxd4 {[%emt 0:01:25]} Nc6 {[%emt 0:02:16]} 14. Be3 {[%emt 0:00:13]} Ne5 {[%emt 0:02:11]} 15. Bc2 {[%emt 0:03:51]} Nc4 {[%emt 0:04:38]} 16. Qb1 {[%emt 0:03:18]} h6 {[%emt 0:03:24]} 17. Bd4 {[%emt 0:03:54]} Ne5 {[%emt 0:02:10]} 18. Nxe5 {[%emt 0:06:14]} fxe5 {[%emt 0:01:21]} 19. Be3 {[%emt 0:08:27]} Bd5 {[%emt 0:01:42]} 20. Rd1 {[%emt 0:05:20]} Qc6 {[%emt 0:02:06]} 21. f3 {[%emt 0:08:45]} Bc5 {[%emt 0:04:54]} 22. Bxc5 {[%emt 0:04:51]} Qxc5+ {[%emt 0:00:08]} 23. Kh1 {[%emt 0:00:05]} Bc4 {[%emt 0:05:02]} 24. Bd3 {[%emt 0:02:45]} Bxd3 {[%emt 0:04:57]} 25. Rxd3 {[%emt 0:00:03]} Qb5 {[%emt 0:00:35]} 26. Re3 {[%emt 0:02:08]} Rd2 {[%emt 0:03:05]} 27. b3 {[%emt 0:00:28]} Rad8 {[%emt 0:05:24]} 28. Qe1 {[%emt 0:00:44]} f6 {[%emt 0:05:37]} 29. c4 {[%emt 0:01:56]} Qa6 {[%emt 0:01:03]} 30. Re2 {[%emt 0:02:50]} R2d4 {[%emt 0:01:01]} 31. Re4 {[%emt 0:10:10]} Qb6 {[%emt 0:02:08]} 32. Re2 {[%emt 0:03:56]} R8d7 {[%emt 0:01:11]} 33. Rc2 {[%emt 0:00:34]} Qd8 {[%emt 0:00:33]} 34. Rcc1 {[%emt 0:00:02]} Rd2 {[%emt 0:01:12]} 35. a4 {[%emt 0:12:39]} R7d3 {[%emt 0:02:59]} 36. Rcb1 {[%emt 0:00:44]} Qd4 {[%emt 0:00:57]} 37. Qe4 {[%emt 0:03:06]} Qf2 {[%emt 0:02:00]} 38. Qg4 {[%emt 0:01:11]} h5 {[%emt 0:06:47]} 39. Qg6 {[%emt 0:00:10]} Kf8 {[%emt 0:03:16]} 40. Rf1 {[%emt 0:00:50]} Qh4 {[%emt 0:01:45]} 41. Rab1 {[%emt 0:30:14]} Re3 {[%emt 0:35:54]} 42. Rbd1 {[%emt 0:02:16]} Ree2 {[%emt 0:02:36]} 43. Rg1 {[%emt 0:00:00]} Rxg2 {[%emt 0:00:00]} 44. Qxg2 {[%emt 0:00:00]} Rxg2 {[%emt 0:00:00]} 45. Kxg2 {[%emt 0:00:00]} f5 {[%emt 0:00:00]} 46. Rgf1 {[%emt 0:00:00]} f4 {[%emt 0:00:00]} 47. Rd2 {[%emt 0:00:00]} Qg3+ {[%emt 0:00:00]} 48. Kh1 {[%emt 0:00:00]} Qxh3+ {[%emt 0:00:00]} 49. Kg1 {[%emt 0:00:00]} Qf5 {[%emt 0:00:00]} 50. Rh2 {[%emt 0:00:00]} e4 {[%emt 0:00:00]} 51. fxe4 {[%emt 0:00:00]} Qxe4 {[%emt 0:00:00]} 52. Rh4 {[%emt 0:00:00]} Qe3+ {[%emt 0:00:00]} 53. Kh1 {[%emt 0:00:00]} f3 {[%emt 0:00:00]} 54. Rh3 {[%emt 0:00:00]} Qe4 {[%emt 0:00:00]} 55. Rfxf3+ {[%emt 0:00:00]} Kg8 {[%emt 0:00:00]} 56. Kg1 {[%emt 0:00:00]} g6 {[%emt 0:00:00]} 57. Rf2 {[%emt 0:00:00]} Kh7 {[%emt 0:00:00]} 58. Rfh2 {[%emt 0:00:00]} Kh6 {[%emt 0:00:00]} 59. Kf2 {[%emt 0:00:00]} Qg4 {[%emt 0:00:00]} 60. Rg3 {[%emt 0:01:30]} Qf4+ {[%emt 0:00:00]} 61. Kg2 {[%emt 0:01:19]} g5 {[%emt 0:00:00]} 62. Rgh3 {[%emt 0:02:01]} h4 {[%emt 0:00:00]} 63. Kg1 {[%emt 0:01:19]} Kh5 {[%emt 0:00:00]} 64. Rf2 {[%emt 0:02:00]} Qd4 {[%emt 0:00:00]} 65. Rhf3 {[%emt 0:00:43]} Qg4+ {[%emt 0:00:00]} 66. Kh2 {[%emt 0:00:46]} Qe4 {[%emt 0:00:00]} 67. Rf7 {[%emt 0:01:59]} Qe5+ {[%emt 0:04:29]} 68. Kh1 {[%emt 0:00:27]} Kg6 0-1

[Event "DFMMLV 2019"]
[Site "Braunfels"]
[Date "2019.06.21"]
[Round "3.31"]
[White "Doll, Rebecca"]
[Black "von Beckh, Frieda"]
[Result "1-0"]
[ECO "B22"]
[WhiteElo "1678"]
[BlackElo "1465"]
[Annotator "NA"]
[PlyCount "75"]
[EventDate "2019.06.20"]
[EventType "team-tourn"]
[EventCountry "GER"]
[SourceTitle "playchess.com"]
[Source "ChessBase"]
[SourceQuality "1"]
[WhiteTeam "Baden"]
[BlackTeam "Hessen 2"]
[TimeControl "40/5400+30:1800+30"]

1. e4 {[%emt 0:00:00]} c5 {[%emt 0:00:00]} 2. c3 {[%emt 0:00:00]} Nc6 {[%emt 0:00:00]} 3. d4 {[%emt 0:00:00]} cxd4 {[%emt 0:00:00]} 4. cxd4 {[%emt 0:00:07]} g6 {[%emt 0:00:04]} 5. Nc3 {[%emt 0:00:57]} Bg7 {[%emt 0:00:11]} 6. Nf3 {[%emt 0:02:19]} e6 {[%emt 0:00:36]} 7. Bg5 {[%emt 0:04:09]} Nge7 {[%emt 0:01:00]} 8. d5 {[%emt 0:05:11]} exd5 {[%emt 0:02:36]} 9. exd5 {[%emt 0:03:08]} Ne5 {[%emt 0:01:10]} 10. d6 {[%emt 0:05:47]} f6 {[%emt 0:00:48]} 11. dxe7 {[%emt 0:00:44]} Qxe7 {[%emt 0:00:28]} 12. Be3 {[%emt 0:01:04]} Qb4 {[%emt 0:01:20]} 13. Nxe5 {[%emt 0:04:14]} Qxb2 {[%emt 0:01:04]} 14. Nd5 {[%emt 0:00:35]} Qxe5 {[%emt 0:00:29]} 15. Be2 {[%emt 0:03:36]} O-O {[%emt 0:01:21]} 16. O-O {[%emt 0:01:03]} b6 {[%emt 0:00:30]} 17. Bf4 {[%emt 0:04:11]} Qe4 {[%emt 0:01:11]} 18. Bf3 {[%emt 0:01:35]} Qe6 {[%emt 0:00:45]} 19. Nc7 {[%emt 0:01:31]} Qf5 {[%emt 0:00:36]} 20. Qd5+ {[%emt 0:00:54]} Qxd5 {[%emt 0:01:15]} 21. Bxd5+ {[%emt 0:00:09]} Kh8 {[%emt 0:00:11]} 22. Bxa8 {[%emt 0:01:13]} f5 {[%emt 0:00:30]} 23. Rae1 {[%emt 0:03:44]} Ba6 {[%emt 0:01:13]} 24. Nxa6 {[%emt 0:00:17]} Rxa8 {[%emt 0:00:17]} 25. Be5 {[%emt 0:00:26]} d5 {[%emt 0:00:47]} 26. Bxg7+ {[%emt 0:00:19]} Kxg7 {[%emt 0:00:12]} 27. Nc7 {[%emt 0:00:45]} Rd8 {[%emt 0:00:11]} 28. Ne6+ {[%emt 0:00:08]} Kg8 {[%emt 0:00:14]} 29. Nxd8 {[%emt 0:00:10]} d4 {[%emt 0:00:11]} 30. f3 {[%emt 0:01:24]} d3 {[%emt 0:00:28]} 31. Kf2 {[%emt 0:00:17]} d2 {[%emt 0:00:15]} 32. Rd1 {[%emt 0:00:07]} a5 {[%emt 0:00:20]} 33. Rxd2 {[%emt 0:00:07]} b5 {[%emt 0:00:04]} 34. Rd7 {[%emt 0:00:33]} Kf8 {[%emt 0:00:15]} 35. Ne6+ {[%emt 0:00:50]} Ke8 {[%emt 0:00:14]} 36. Rb7 {[%emt 0:00:25]} b4 {[%emt 0:00:15]} 37. Rc1 {[%emt 0:00:07]} b3 {[%emt 0:00:10]} 38. Rc8# {[%emt 0:00:08]} 1-0

[Event "DFMMLV 2019"]
[Site "Braunfels"]
[Date "2019.06.21"]
[Round "3.32"]
[White "Biesdorf, Ina"]
[Black "Landenberger, Anja Kathrin"]
[Result "0-1"]
[ECO "A45"]
[WhiteElo "1405"]
[BlackElo "1781"]
[Annotator "NA"]
[PlyCount "108"]
[EventDate "2019.06.20"]
[EventType "team-tourn"]
[EventCountry "GER"]
[SourceTitle "playchess.com"]
[Source "ChessBase"]
[SourceQuality "1"]
[WhiteTeam "Hessen 2"]
[BlackTeam "Baden"]
[TimeControl "40/5400+30:1800+30"]

1. d4 {[%emt 0:00:00]} Nf6 {[%emt 0:00:04]} 2. Bf4 {[%emt 0:00:00]} d5 {[%emt 0:01:41]} 3. e3 {[%emt 0:00:16]} e6 {[%emt 0:05:04]} 4. c4 {[%emt 0:09:28]} Bd6 {[%emt 0:08:47]} 5. Bg5 {[%emt 0:08:28]} c6 {[%emt 0:04:15]} 6. Nd2 {[%emt 0:16:25]} Nbd7 {[%emt 0:02:44]} 7. Ngf3 {[%emt 0:08:18]} O-O {[%emt 0:09:36]} 8. Bd3 {[%emt 0:07:01]} Qe8 {[%emt 0:05:56]} 9. e4 {[%emt 0:11:50]} dxe4 {[%emt 0:03:12]} 10. Nxe4 {[%emt 0:05:23]} Nxe4 {[%emt 0:01:33]} 11. Bxe4 {[%emt 0:01:39]} f5 {[%emt 0:08:30]} 12. Bc2 {[%emt 0:04:00]} e5 {[%emt 0:04:51]} 13. O-O {[%emt 0:04:34]} e4 {[%emt 0:01:05]} 14. c5 {[%emt 0:02:15]} exf3 {[%emt 0:06:31]} 15. cxd6 {[%emt 0:00:11]} Qg6 {[%emt 0:00:07]} 16. h4 {[%emt 0:02:03]} h6 {[%emt 0:00:52]} 17. g4 {[%emt 0:02:26]} hxg5 {[%emt 0:00:42]} 18. Qxf3 {[%emt 0:01:09]} gxh4 {[%emt 0:02:46]} 19. Bxf5 {[%emt 0:01:21]} Rxf5 {[%emt 0:21:09]} 20. Qxf5 {[%emt 0:00:52]} Qxf5 {[%emt 0:00:16]} 21. gxf5 {[%emt 0:00:11]} Nf6 {[%emt 0:00:06]} 22. Rfe1 {[%emt 0:01:10]} Bxf5 {[%emt 0:00:08]} 23. Re7 {[%emt 0:00:54]} Bd7 {[%emt 0:04:58]} 24. Kh1 {[%emt 0:03:21]} Rd8 {[%emt 0:01:08]} 25. Rg1 {[%emt 0:01:46]} Ne8 26. Rg5 {[%emt 0:03:33]} h3 {[%emt 0:02:08]} 27. Kh2 {[%emt 0:00:31]} Kh7 {[%emt 0:02:02]} 28. f4 {[%emt 0:01:39]} Kh6 {[%emt 0:01:58]} 29. a3 {[%emt 0:02:50]} g6 {[%emt 0:00:26]} 30. Rge5 {[%emt 0:00:43]} Nxd6 {[%emt 0:00:17]} 31. d5 {[%emt 0:00:41]} c5 {[%emt 0:01:39]} 32. Rxd7 {[%emt 0:00:14]} Rxd7 {[%emt 0:00:13]} 33. Re6 {[%emt 0:00:02]} Nf5 {[%emt 0:00:29]} 34. Kxh3 {[%emt 0:00:27]} Rxd5 {[%emt 0:00:01]} 35. Kg4 {[%emt 0:00:15]} Rd2 {[%emt 0:00:27]} 36. b4 {[%emt 0:00:13]} c4 {[%emt 0:00:49]} 37. Re1 {[%emt 0:00:42]} Rg2+ {[%emt 0:00:43]} 38. Kf3 {[%emt 0:00:16]} Rg3+ {[%emt 0:00:12]} 39. Ke2 {[%emt 0:01:01]} Rxa3 {[%emt 0:00:36]} 40. Rh1+ {[%emt 0:00:16]} Kg7 {[%emt 0:00:08]} 41. Rc1 {[%emt 0:30:37]} b5 {[%emt 0:30:19]} 42. Kd2 {[%emt 0:00:46]} Ra2+ {[%emt 0:01:48]} 43. Kc3 {[%emt 0:00:21]} Ra3+ {[%emt 0:00:33]} 44. Kb2 {[%emt 0:00:17]} Rb3+ {[%emt 0:00:17]} 45. Ka2 {[%emt 0:00:24]} Rxb4 {[%emt 0:00:26]} 46. Rc3 {[%emt 0:00:54]} Rb3 {[%emt 0:00:00]} 47. Rxb3 {[%emt 0:00:00]} cxb3+ {[%emt 0:00:00]} 48. Kxb3 {[%emt 0:00:00]} a5 {[%emt 0:00:00]} 49. Ka3 {[%emt 0:00:00]} Kf6 {[%emt 0:00:00]} 50. Kb3 {[%emt 0:00:00]} Ke6 {[%emt 0:00:00]} 51. Kc3 {[%emt 0:00:00]} Kd5 {[%emt 0:00:00]} 52. Kd3 {[%emt 0:00:00]} b4 {[%emt 0:00:00]} 53. Kc2 {[%emt 0:00:00]} Ke4 {[%emt 0:00:00]} 54. Kb3 {[%emt 0:00:00]} Kxf4 {[%emt 0:00:00]} 0-1

[Event "DFMMLV 2019"]
[Site "Braunfels"]
[Date "2019.06.21"]
[Round "3.34"]
[White "Mucha, Annegret"]
[Black "Noll, Sonja"]
[Result "1-0"]
[ECO "A00"]
[WhiteElo "2050"]
[BlackElo "1777"]
[Annotator "NA"]
[PlyCount "81"]
[EventDate "2019.06.20"]
[EventType "team-tourn"]
[EventCountry "GER"]
[SourceTitle "playchess.com"]
[Source "ChessBase"]
[SourceQuality "1"]
[WhiteTeam "Thueringen"]
[BlackTeam "Saarland"]
[TimeControl "40/5400+30:1800+30"]

1. Nc3 {[%emt 0:00:00]} e5 {[%emt 0:00:00]} 2. Nf3 {[%emt 0:00:00]} Nc6 {[%emt 0:00:06]} 3. d4 {[%emt 0:00:02]} exd4 {[%emt 0:00:23]} 4. Nxd4 {[%emt 0:00:05]} Bb4 {[%emt 0:01:03]} 5. Nxc6 {[%emt 0:02:47]} Bxc3+ {[%emt 0:00:09]} 6. bxc3 {[%emt 0:00:08]} bxc6 {[%emt 0:01:23]} 7. Qd4 {[%emt 0:01:09]} Qf6 {[%emt 0:02:15]} 8. Rb1 {[%emt 0:03:09]} Ne7 {[%emt 0:00:41]} 9. Qxf6 {[%emt 0:04:51]} gxf6 {[%emt 0:00:05]} 10. e4 {[%emt 0:00:08]} d6 {[%emt 0:04:34]} 11. Be3 {[%emt 0:04:35]} c5 {[%emt 0:06:29]} 12. f4 {[%emt 0:03:36]} O-O {[%emt 0:05:33]} 13. Kf2 {[%emt 0:02:58]} f5 {[%emt 0:11:23]} 14. Bd3 {[%emt 0:06:15]} fxe4 {[%emt 0:04:02]} 15. Bxe4 {[%emt 0:00:33]} c6 {[%emt 0:01:13]} 16. Rhd1 {[%emt 0:00:32]} Bf5 {[%emt 0:07:04]} 17. Bxf5 {[%emt 0:09:50]} Nxf5 {[%emt 0:00:06]} 18. Bc1 {[%emt 0:01:42]} Rfd8 {[%emt 0:02:52]} 19. Rb7 {[%emt 0:03:15]} d5 {[%emt 0:02:21]} 20. Rc7 {[%emt 0:04:00]} Nd6 {[%emt 0:01:29]} 21. Rxc6 {[%emt 0:02:40]} Ne4+ {[%emt 0:00:16]} 22. Kf1 {[%emt 0:01:30]} Nxc3 {[%emt 0:02:33]} 23. Rd3 {[%emt 0:00:15]} Ne4 {[%emt 0:00:42]} 24. Rc7 {[%emt 0:08:07]} c4 {[%emt 0:10:39]} 25. Rd1 {[%emt 0:09:23]} a5 {[%emt 0:13:28]} 26. Bb2 {[%emt 0:05:22]} f6 {[%emt 0:09:07]} 27. g4 {[%emt 0:09:51]} h6 {[%emt 0:00:58]} 28. Kg2 {[%emt 0:01:36]} Rab8 {[%emt 0:00:19]} 29. Bd4 {[%emt 0:00:19]} Rbc8 {[%emt 0:01:00]} 30. Rb7 {[%emt 0:04:54]} a4 {[%emt 0:02:31]} 31. Rdb1 {[%emt 0:06:18]} Rf8 {[%emt 0:04:17]} 32. Ra7 {[%emt 0:02:18]} Ra8 {[%emt 0:00:04]} 33. Rd7 {[%emt 0:02:01]} Rfd8 {[%emt 0:00:56]} 34. Rbb7 {[%emt 0:00:19]} Rxd7 {[%emt 0:00:08]} 35. Rxd7 {[%emt 0:00:07]} Ra5 {[%emt 0:00:37]} 36. h4 {[%emt 0:00:36]} Rb5 {[%emt 0:03:34]} 37. g5 {[%emt 0:01:30]} hxg5 {[%emt 0:00:09]} 38. fxg5 {[%emt 0:00:11]} fxg5 {[%emt 0:00:07]} 39. h5 {[%emt 0:00:22]} Rb6 {[%emt 0:03:00]} 40. Bxb6 {[%emt 0:00:14]} Nf6 {[%emt 0:00:03]} 41. Rd8+ {[%emt 0:30:37]} 1-0

[Event "DFMMLV 2019"]
[Site "Braunfels"]
[Date "2019.06.21"]
[Round "3.35"]
[White "Ramm, Madlen"]
[Black "Skibbe, Diana"]
[Result "0-1"]
[ECO "C22"]
[WhiteElo "1733"]
[BlackElo "1986"]
[Annotator "NA"]
[PlyCount "44"]
[EventDate "2019.06.20"]
[EventType "team-tourn"]
[EventCountry "GER"]
[SourceTitle "playchess.com"]
[Source "ChessBase"]
[SourceQuality "1"]
[WhiteTeam "Saarland"]
[BlackTeam "Thueringen"]
[TimeControl "40/5400+30:1800+30"]

1. e4 {[%emt 0:00:00]} e5 {[%emt 0:00:00]} 2. d4 {[%emt 0:00:00]} exd4 {[%emt 0:00:00]} 3. Qxd4 {[%emt 0:00:00]} Nc6 {[%emt 0:00:00]} 4. Qe3 {[%emt 0:00:04]} Nf6 {[%emt 0:04:02]} 5. Bd2 {[%emt 0:02:17]} Be7 {[%emt 0:01:06]} 6. Nc3 {[%emt 0:01:29]} O-O {[%emt 0:03:56]} 7. O-O-O {[%emt 0:00:26]} d6 {[%emt 0:07:30]} 8. h3 {[%emt 0:02:10]} Re8 {[%emt 0:03:15]} 9. f4 {[%emt 0:10:02]} Bf8 {[%emt 0:00:42]} 10. Bd3 {[%emt 0:06:52]} d5 {[%emt 0:02:28]} 11. Qe1 {[%emt 0:09:35]} d4 {[%emt 0:07:36]} 12. Nb1 {[%emt 0:03:10]} Bf5 {[%emt 0:04:58]} 13. e5 {[%emt 0:05:27]} Bxd3 {[%emt 0:00:06]} 14. cxd3 {[%emt 0:00:33]} Nd5 {[%emt 0:00:12]} 15. Qg3 {[%emt 0:02:15]} Qe7 {[%emt 0:02:11]} 16. Re1 {[%emt 0:02:17]} Ndb4 {[%emt 0:01:44]} 17. Kd1 {[%emt 0:02:54]} Nxa2 {[%emt 0:02:58]} 18. Nf3 {[%emt 0:02:02]} Nab4 {[%emt 0:00:15]} 19. f5 {[%emt 0:01:16]} Qc5 {[%emt 0:00:19]} 20. Ng5 {[%emt 0:05:39]} Qc2+ {[%emt 0:02:02]} 21. Ke2 {[%emt 0:00:01]} Rxe5+ {[%emt 0:00:24]} 22. Kf2 {[%emt 0:00:40]} Nxd3+ {[%emt 0:00:47]} 0-1

[Event "DFMMLV 2019"]
[Site "Braunfels"]
[Date "2019.06.21"]
[Round "3.36"]
[White "Jacke, Corinna"]
[Black "Fuchs, Emily"]
[Result "0-1"]
[ECO "C44"]
[WhiteElo "2001"]
[BlackElo "1384"]
[Annotator "NA"]
[PlyCount "64"]
[EventDate "2019.06.20"]
[EventType "team-tourn"]
[EventCountry "GER"]
[SourceTitle "playchess.com"]
[Source "ChessBase"]
[SourceQuality "1"]
[WhiteTeam "Thueringen"]
[BlackTeam "Saarland"]
[TimeControl "40/5400+30:1800+30"]

1. e4 {[%emt 0:00:00]} e5 {[%emt 0:00:00]} 2. Nf3 {[%emt 0:00:00]} Nc6 {[%emt 0:00:00]} 3. d4 {[%emt 0:00:00]} exd4 {[%emt 0:00:00]} 4. c3 {[%emt 0:00:12]} Nf6 {[%emt 0:13:06]} 5. e5 {[%emt 0:06:04]} Nd5 {[%emt 0:04:10]} 6. cxd4 {[%emt 0:17:41]} d6 {[%emt 0:09:47]} 7. Bc4 {[%emt 0:21:45]} Nb6 {[%emt 0:05:59]} 8. Bxf7+ {[%emt 0:05:46]} Kxf7 {[%emt 0:00:52]} 9. Ng5+ {[%emt 0:00:07]} Ke8 {[%emt 0:05:55]} 10. e6 {[%emt 0:05:21]} Qf6 {[%emt 0:10:34]} 11. Be3 {[%emt 0:23:52]} Bxe6 {[%emt 0:12:42]} 12. Nxe6 {[%emt 0:03:03]} Qxe6 {[%emt 0:01:40]} 13. O-O {[%emt 0:00:07]} Kd7 {[%emt 0:08:19]} 14. Nc3 {[%emt 0:02:34]} d5 {[%emt 0:03:05]} 15. Re1 {[%emt 0:01:30]} Re8 {[%emt 0:03:09]} 16. Bd2 {[%emt 0:01:03]} Qg6 {[%emt 0:03:04]} 17. Rxe8 {[%emt 0:01:44]} Qxe8 {[%emt 0:01:10]} 18. Bf4 {[%emt 0:03:17]} Qf7 {[%emt 0:10:21]} 19. Bg3 {[%emt 0:01:02]} a6 {[%emt 0:00:52]} 20. a4 {[%emt 0:01:01]} Nc4 {[%emt 0:02:07]} 21. b3 {[%emt 0:00:55]} Nd6 {[%emt 0:00:34]} 22. Qg4+ {[%emt 0:00:34]} Qf5 {[%emt 0:01:12]} 23. Qd1 {[%emt 0:01:45]} Ne4 {[%emt 0:01:06]} 24. Ne2 {[%emt 0:01:09]} Nxg3 {[%emt 0:00:27]} 25. Nxg3 {[%emt 0:00:10]} Qf6 {[%emt 0:00:46]} 26. Qh5 {[%emt 0:00:44]} Bd6 {[%emt 0:01:23]} 27. Qxd5 {[%emt 0:00:24]} Qe6 {[%emt 0:00:27]} 28. Qg5 {[%emt 0:00:25]} Qf6 {[%emt 0:00:37]} 29. Qg4+ {[%emt 0:00:07]} Kd8 {[%emt 0:00:17]} 30. Nh5 {[%emt 0:00:28]} Qxd4 {[%emt 0:00:47]} 31. Qg5+ {[%emt 0:01:20]} Be7 {[%emt 0:00:21]} 32. Qf5 {[%emt 0:01:00]} Qxa1+ {[%emt 0:00:20]} 0-1

[Event "DFMMLV 2019"]
[Site "Braunfels"]
[Date "2019.06.21"]
[Round "3.37"]
[White "Huppert, Anna"]
[Black "Dietrich, Mareike"]
[Result "1/2-1/2"]
[ECO "B23"]
[WhiteElo "1515"]
[BlackElo "1706"]
[Annotator "NA"]
[PlyCount "78"]
[EventDate "2019.06.20"]
[EventType "team-tourn"]
[EventCountry "GER"]
[SourceTitle "playchess.com"]
[Source "ChessBase"]
[SourceQuality "1"]
[WhiteTeam "Saarland"]
[BlackTeam "Thueringen"]
[TimeControl "40/5400+30:1800+30"]

1. e4 {[%emt 0:00:00]} c5 {[%emt 0:00:00]} 2. Nc3 {[%emt 0:00:00]} a6 {[%emt 0:00:00]} 3. f4 {[%emt 0:00:09]} b5 {[%emt 0:00:25]} 4. Nf3 {[%emt 0:00:19]} Bb7 {[%emt 0:00:04]} 5. d3 {[%emt 0:00:21]} e6 {[%emt 0:00:25]} 6. Be3 {[%emt 0:01:13]} d5 {[%emt 0:02:25]} 7. exd5 {[%emt 0:01:47]} exd5 {[%emt 0:00:35]} 8. d4 {[%emt 0:02:16]} c4 {[%emt 0:03:14]} 9. a3 {[%emt 0:03:42]} Nf6 {[%emt 0:00:46]} 10. Be2 {[%emt 0:04:03]} Bd6 {[%emt 0:03:44]} 11. O-O {[%emt 0:01:29]} Ng4 {[%emt 0:07:14]} 12. Bd2 {[%emt 0:01:58]} Qb6 {[%emt 0:04:07]} 13. Qe1 {[%emt 0:03:48]} Be7 {[%emt 0:05:56]} 14. Nd1 {[%emt 0:01:53]} Nc6 {[%emt 0:02:17]} 15. c3 {[%emt 0:02:01]} O-O-O {[%emt 0:04:30]} 16. Kh1 {[%emt 0:05:06]} h5 {[%emt 0:04:50]} 17. a4 {[%emt 0:01:32]} Qc7 {[%emt 0:02:48]} 18. axb5 {[%emt 0:01:14]} axb5 {[%emt 0:00:01]} 19. Rb1 {[%emt 0:00:42]} g5 {[%emt 0:08:21]} 20. f5 {[%emt 0:04:07]} Rdg8 {[%emt 0:02:53]} 21. b3 {[%emt 0:01:12]} Bd6 {[%emt 0:00:38]} 22. h3 {[%emt 0:04:00]} Nh2 {[%emt 0:01:12]} 23. Nxh2 {[%emt 0:03:04]} Bxh2 {[%emt 0:01:16]} 24. bxc4 {[%emt 0:00:35]} Bg3 {[%emt 0:00:57]} 25. Nf2 {[%emt 0:00:17]} bxc4 {[%emt 0:02:12]} 26. Rb5 {[%emt 0:03:59]} Qd7 {[%emt 0:04:43]} 27. Qb1 {[%emt 0:03:04]} Ne7 {[%emt 0:03:26]} 28. Bd1 {[%emt 0:04:38]} Bc6 {[%emt 0:01:42]} 29. Ra5 {[%emt 0:04:44]} Nxf5 {[%emt 0:03:32]} 30. Bc2 {[%emt 0:01:13]} Nd6 {[%emt 0:07:00]} 31. Bc1 {[%emt 0:04:04]} g4 {[%emt 0:04:31]} 32. Ba3 {[%emt 0:04:10]} Bxf2 {[%emt 0:05:07]} 33. Bxd6 {[%emt 0:01:20]} Qxd6 {[%emt 0:01:04]} 34. Rxf2 {[%emt 0:01:18]} gxh3 {[%emt 0:03:45]} 35. Bf5+ {[%emt 0:00:44]} Kd8 {[%emt 0:02:52]} 36. Bxh3 {[%emt 0:00:38]} Qc7 {[%emt 0:02:34]} 37. Rc5 {[%emt 0:01:49]} Re8 {[%emt 0:01:14]} 38. Rf6 {[%emt 0:03:58]} Qb7 {[%emt 0:02:02]} 39. Qf5 {[%emt 0:04:22]} Re1+ {[%emt 0:01:39]} 1/2-1/2

[Event "DFMMLV 2019"]
[Site "Braunfels"]
[Date "2019.06.21"]
[Round "3.38"]
[White "Schulz, Theresa Charlotte"]
[Black "Weinmann, Helene"]
[Result "1-0"]
[ECO "C50"]
[WhiteElo "1603"]
[BlackElo "1522"]
[Annotator "NA"]
[PlyCount "75"]
[EventDate "2019.06.20"]
[EventType "team-tourn"]
[EventCountry "GER"]
[SourceTitle "playchess.com"]
[Source "ChessBase"]
[SourceQuality "1"]
[WhiteTeam "Thueringen"]
[BlackTeam "Saarland"]
[TimeControl "40/5400+30:1800+30"]

1. e4 {[%emt 0:00:00]} e5 {[%emt 0:00:00]} 2. Nf3 {[%emt 0:00:00]} d6 {[%emt 0:00:00]} 3. d4 {[%emt 0:00:00]} exd4 {[%emt 0:00:06]} 4. Nxd4 {[%emt 0:00:05]} Nf6 {[%emt 0:00:16]} 5. Nc3 {[%emt 0:00:09]} Be7 {[%emt 0:00:17]} 6. Bc4 {[%emt 0:00:17]} O-O {[%emt 0:00:22]} 7. O-O {[%emt 0:00:08]} Nbd7 {[%emt 0:00:17]} 8. Bb3 {[%emt 0:01:52]} Nc5 {[%emt 0:00:36]} 9. Re1 {[%emt 0:00:33]} Nxb3 {[%emt 0:00:26]} 10. cxb3 {[%emt 0:02:15]} Nd7 {[%emt 0:02:57]} 11. f4 {[%emt 0:00:42]} Bf6 {[%emt 0:00:38]} 12. Nf5 {[%emt 0:04:18]} Nb6 {[%emt 0:01:34]} 13. Ng3 {[%emt 0:00:43]} Bd7 {[%emt 0:01:10]} 14. Nh5 {[%emt 0:04:22]} Bh4 {[%emt 0:02:41]} 15. g3 {[%emt 0:03:25]} Be7 {[%emt 0:00:12]} 16. f5 {[%emt 0:02:38]} f6 {[%emt 0:04:21]} 17. Nf4 {[%emt 0:08:36]} Qc8 {[%emt 0:00:54]} 18. Nce2 {[%emt 0:01:20]} c6 {[%emt 0:04:14]} 19. Nd4 {[%emt 0:01:41]} Rf7 {[%emt 0:02:04]} 20. Nde6 {[%emt 0:06:12]} Bf8 {[%emt 0:05:49]} 21. Qh5 {[%emt 0:03:53]} Bxe6 {[%emt 0:05:17]} 22. Nxe6 {[%emt 0:00:39]} Qe8 {[%emt 0:02:16]} 23. g4 {[%emt 0:01:31]} Rd7 {[%emt 0:01:24]} 24. Qh4 {[%emt 0:01:48]} Qf7 {[%emt 0:01:07]} 25. g5 {[%emt 0:04:55]} Be7 {[%emt 0:02:33]} 26. Re2 {[%emt 0:03:06]} d5 {[%emt 0:02:15]} 27. g6 {[%emt 0:11:40]} hxg6 {[%emt 0:02:32]} 28. Rg2 {[%emt 0:04:12]} g5 {[%emt 0:02:01]} 29. Qg4 {[%emt 0:00:23]} dxe4 {[%emt 0:01:59]} 30. h4 {[%emt 0:01:52]} gxh4 {[%emt 0:05:14]} 31. Qxh4 {[%emt 0:04:10]} Rd1+ {[%emt 0:00:41]} 32. Kf2 {[%emt 0:00:20]} Bf8 {[%emt 0:01:11]} 33. Rh2 {[%emt 0:07:20]} Qd7 {[%emt 0:01:34]} 34. Qh7+ {[%emt 0:05:51]} Kf7 {[%emt 0:00:50]} 35. Qh5+ {[%emt 0:00:59]} Ke7 {[%emt 0:01:21]} 36. Be3 {[%emt 0:00:51]} Rd2+ {[%emt 0:01:18]} 37. Kg1 {[%emt 0:04:14]} Rd1+ {[%emt 0:00:57]} 38. Rxd1 {[%emt 0:00:07]} 1-0